bitfinex-derivatives/quotes_SOLF0:USTF0_20241008
["timestamp","ask_amount","ask_price","bid_price","bid_amount"]
[1728389279001,10.65,144.17,144.15,3.4696]
[1728389279199,4.8,144.17,144.15,3.4696]
[1728389279500,4.8,144.17,144.11,92.02592943]
[1728389279501,15.45,144.17,144.13,10.65]
[1728389279696,15.45,144.17,144.16,3.4695]
[1728389281411,15.45,144.17,144.13,10.65]
[1728389281611,15.45,144.17,144.15,3.4696]
[1728389282310,10.65,144.16,144.15,3.4696]
[1728389283406,4.8,144.17,144.16,3.4695]
[1728389283605,15.45,144.17,144.16,3.4695]
[1728389285012,10.65,144.17,144.16,3.4695]
[1728389285818,8.2691,144.18,144.16,3.4695]
[1728389286115,10.65,144.17,144.16,3.4695]
[1728389286512,3.4687,144.2,144.17,3.4693]
[1728389286717,1.3816,144.21,144.17,10.65]
[1728389286904,1.3816,144.21,144.18,10.65]
[1728389286905,4.8,144.21,144.18,10.65]
[1728389287505,4.8,144.21,144.2,3.4686]
[1728389288413,4.8,144.21,144.2,8.72454129]
[1728389290011,17.6774175,144.23,144.2,8.72454129]
[1728389290211,22.4774175,144.23,144.21,5.25594129]
[1728389290413,22.4774175,144.23,144.22,5.25594129]
[1728389290921,0.12502,144.23,144.22,5.25594129]
[1728389291109,0.12502,144.23,144.22,8.72404129]
[1728389291311,10.77502,144.23,144.22,8.72404129]
[1728389291819,0.12502,144.23,144.22,3.4681]
[1728389292014,10.77502,144.23,144.22,8.72281577]
[1728389293022,0.12502,144.23,144.22,8.72281577]
[1728389293415,10.77502,144.23,144.22,8.72281577]
[1728389296923,10.77502,144.23,144.22,5.25471577]
[1728389297227,14.24282,144.23,144.22,5.25471577]
[1728389298719,14.24282,144.23,144.2,3.4684]
[1728389298914,10.65,144.21,144.2,3.4684]
[1728389299317,10.65,144.21,144.2,8.72057617]
[1728389300628,10.65,144.21,144.2,3.4684]
[1728389306139,10.65,144.22,144.2,3.4684]
[1728389314538,3.59282,144.23,144.15,4.8]
[1728389314539,0.12502,144.23,144.18,10.65]
[1728389314837,10.77502,144.23,144.18,10.65]
[1728389315039,15.55502,144.23,144.18,10.65]
[1728389315440,15.55502,144.23,144.21,3.4682]
[1728389316539,15.55502,144.23,144.18,10.65]
[1728389316841,15.55502,144.23,144.19,5.24135928]
[1728389317137,0.12502,144.23,144.2,5.24135928]
[1728389317336,0.12502,144.23,144.21,15.89135928]
[1728389317536,0.12502,144.23,144.22,8.70945928]
[1728389317843,0.12502,144.23,144.22,3.4681]
[1728389318838,10.77502,144.23,144.18,1.3266]
[1728389319041,10.65,144.2,144.15,4.78]
[1728389319238,10.65,144.2,144.19,3.4688]
[1728389323542,10.65,144.2,144.18,3.469]
[1728389323739,10.65,144.19,144.14,11.9636]
[1728389324044,10.65,144.19,144.14,1.3136]
[1728389324848,10.65,144.19,144.17,3.4691]
[1728389329250,14.1188,144.19,144.16,3.4694]
[1728389329647,14.1188,144.19,144.14,1.3136]
[1728389330258,10.65,144.19,144.14,1.3136]
[1728389330446,10.65,144.19,144.17,3.4692]
[1728389331446,8.2487,144.2,144.17,3.4692]
[1728389331639,10.65,144.19,144.17,3.4692]
[1728389335350,10.65,144.19,144.18,3.4691]
[1728389336351,4.78,144.2,144.18,3.4691]
[1728389336652,10.65,144.19,144.18,3.4691]
[1728389336953,10.65,144.19,144.18,8.81554703]
[1728389338460,10.65,144.19,144.18,8.81565716]
[1728389338959,10.65,144.19,144.18,3.4691]
[1728389339163,15.41,144.19,144.18,3.4691]
[1728389339843,15.41,144.19,144.17,3.4691]
[1728389340046,18.8788,144.19,144.18,5.34661569]
[1728389340265,15.41,144.19,144.18,5.34661569]
[1728389340756,15.41,144.19,144.18,3.4691]
[1728389340958,10.65,144.19,144.14,1.3136]
[1728389341154,10.65,144.17,144.13,91.89505917]
[1728389341462,4.76,144.19,144.14,10.65]
[1728389341665,15.41,144.19,144.14,10.65]
[1728389342154,15.41,144.19,144.18,3.4691]
[1728389342454,15.41,144.19,144.14,10.65]
[1728389342661,10.65,144.18,144.17,3.4692]
[1728389344060,10.65,144.18,144.16,3.4694]
[1728389345062,15.41,144.18,144.16,3.4694]
[1728389346055,15.41,144.18,144.14,3.4699]
[1728389346262,15.41,144.18,144.13,91.89505917]
[1728389346462,4.76,144.18,144.13,102.54505917]
[1728389346664,4.76,144.18,144.17,3.4693]
[1728389347158,15.41,144.19,144.18,3.4689]
[1728389348960,10.65,144.19,144.18,3.4689]
[1728389351365,4.76,144.2,144.18,3.4689]
[1728389351667,10.65,144.19,144.18,3.4689]
[1728389355764,4.76,144.2,144.16,10.65]
[1728389356060,10.65,144.22,144.17,10.65]
[1728389356260,0.12502,144.23,144.18,10.65]
[1728389356461,0.12502,144.23,144.22,3.4681]
[1728389357259,10.77502,144.23,144.18,15.41]
[1728389357968,10.77502,144.23,144.21,3.4682]
[1728389358559,10.77502,144.23,144.22,3.4681]
[1728389358764,0.12502,144.23,144.22,3.4681]
[1728389364371,10.77502,144.23,144.21,3.4682]
[1728389364576,10.77502,144.23,144.19,10.65]
[1728389364873,10.65,144.22,144.2,3.4684]
[1728389366369,3.59302,144.23,144.21,3.4683]
[1728389366370,0.12502,144.23,144.21,3.4683]
[1728389366568,10.65,144.22,144.21,3.4683]
[1728389367075,10.65,144.22,144.18,91.86823851]
[1728389367374,10.65,144.22,144.2,3.4685]
[1728389371470,0.12502,144.23,144.18,102.51823851]
[1728389371663,10.77502,144.23,144.21,3.4681]
[1728389372668,14.24292,144.23,144.21,3.4681]
[1728389373069,19.00292,144.23,144.21,3.4681]
[1728389374180,10.65,144.22,144.21,3.4681]
[1728389375475,10.65,144.22,144.16,11.9871]
[1728389375674,14.1182,144.22,144.16,11.9871]
[1728389375977,10.65,144.2,144.16,11.9871]
[1728389376179,10.65,144.2,144.19,3.4687]
[1728389376375,4.88502,144.23,144.19,3.4687]
[1728389376584,10.65,144.21,144.16,11.9871]
[1728389377472,10.65,144.21,144.19,3.4687]
[1728389378674,14.1183,144.21,144.19,3.4687]
[1728389380877,10.65,144.21,144.19,3.4687]
[1728389382482,10.65,144.21,144.2,5.36642]
[1728389382886,10.65,144.21,144.2,8.83502]
[1728389383085,3.4682,144.22,144.2,8.83502]
[1728389383382,10.65,144.22,144.21,5.36642]
[1728389383570,10.65,144.22,144.21,8.83472]
[1728389384077,14.1181,144.22,144.21,5.36642]
[1728389384976,10.65,144.22,144.21,5.36655619]
[1728389385282,14.1181,144.22,144.21,5.36655619]
[1728389389591,14.1181,144.22,144.21,5.28829103]
[1728389396600,14.1181,144.22,144.2,3.4685]
[1728389400311,3.4683,144.21,144.2,3.4685]
[1728389400507,3.4683,144.21,144.2,5.22205272]
[1728389401713,4.88502,144.23,144.2,5.22205272]
[1728389401938,10.65,144.22,144.17,10.65]
[1728389402139,10.65,144.22,144.18,5.22217311]
[1728389402336,14.1182,144.22,144.2,3.4685]
[1728389402556,10.65,144.21,144.16,10.65]
[1728389402742,10.65,144.21,144.17,5.22218154]
[1728389402949,14.1185,144.21,144.18,5.22218154]
[1728389403245,14.1185,144.21,144.19,5.22218154]
[1728389403444,0.12502,144.23,144.2,5.22218154]
[1728389403645,4.88502,144.23,144.21,5.22218154]
[1728389403846,0.12502,144.23,144.19,10.65]
[1728389404048,0.12502,144.23,144.2,5.22212106]
[1728389404251,0.12502,144.23,144.22,3.4681]
[1728389404543,0.12502,144.23,144.22,8.68978407]
[1728389404746,0.12502,144.23,144.22,14.69185789]
[1728389405440,0.12502,144.23,144.22,3.4681]
[1728389405639,0.12502,144.23,144.22,14.69150218]
[1728389406331,0.12502,144.23,144.22,11.22340218]
[1728389406332,10.77502,144.23,144.22,11.22340218]
[1728389408431,10.77502,144.23,144.22,14.69150218]
[1728389408825,10.77502,144.23,144.22,14.69160294]
[1728389409425,10.77502,144.23,144.22,9.46995186]
[1728389410215,0.12502,144.23,144.22,3.4681]
[1728389410424,0.12502,144.23,144.22,9.4714882]
[1728389411623,10.77502,144.23,144.22,6.0033882]
[1728389411831,14.24282,144.23,144.22,6.0033882]
[1728389412119,10.77502,144.23,144.14,93.31646953]
[1728389412325,10.65,144.19,144.17,3.4692]
[1728389412527,10.65,144.19,144.18,5.22402413]
[1728389413331,14.1188,144.19,144.18,5.22402413]
[1728389414925,10.65,144.19,144.14,91.88896953]
[1728389415127,10.65,144.16,144.14,91.88896953]
[1728389415424,14.1196,144.16,144.14,91.88896953]
[1728389415621,10.65,144.16,144.14,91.88896953]
[1728389416422,10.65,144.16,144.14,95.35896953]
[1728389416825,10.65,144.15,144.11,0.12502]
[1728389417023,10.65,144.12,144.11,0.12502]
[1728389418526,14.1205,144.12,144.11,0.12502]
[1728389421436,10.65,144.12,144.05,3.59702]
[1728389421661,10.65,144.07,144.05,3.59702]
[1728389421959,10.65,144.07,144.06,3.4719]
[1728389422144,4.76,144.08,144.05,0.12502]
[1728389422333,15.41,144.08,144.05,0.12502]
[1728389423247,10.65,144.07,144.06,3.4718]
[1728389423753,10.65,144.07,144.05,3.59702]
[1728389424157,10.65,144.07,144.05,0.12502]
[1728389425552,10.65,144.07,144.06,3.4719]
[1728389426152,10.65,144.07,144.05,0.12502]
[1728389426467,10.65,144.06,144.05,0.12502]
[1728389427257,14.1219,144.06,144.05,0.12502]
[1728389433769,3.4719,144.06,144.05,0.12502]
[1728389434067,14.1219,144.06,144.05,0.12502]
[1728389436950,10.65,144.06,144.02,3.4727]
[1728389437143,1.3911,144.07,144.02,3.4727]
[1728389437144,10.65,144.03,144.02,3.4727]
[1728389440557,4.84,144.05,143.99,10.77502]
[1728389440753,10.65,144.04,143.99,10.77502]
[1728389441256,10.65,144.04,144.03,3.4725]
[1728389441656,10.65,144.04,143.99,0.12502]
[1728389441852,10.65,144.02,143.99,0.12502]
[1728389443055,10.65,144.02,144.01,3.4731]
[1728389444062,15.49,144.02,144.0,3.4733]
[1728389444252,10.65,144.01,144.0,3.4733]
[1728389447449,10.65,144.01,143.99,3.59852]
[1728389447652,14.13368368,144.0,143.99,0.12502]
[1728389447850,10.65,144.0,143.99,0.12502]
[1728389448062,14.08748927,144.0,143.99,0.12502]
[1728389449564,14.08748927,144.0,143.99,3.59862]
[1728389450065,10.65,144.0,143.99,3.59862]
[1728389450751,14.20731687,144.0,143.99,3.59862]
[1728389451159,10.65,144.0,143.99,3.59862]
[1728389458864,4.82,144.0,143.99,3.59862]
[1728389459068,15.47,144.0,143.99,3.59862]
[1728389459860,1.4424,144.06,143.99,0.12502]
[1728389460065,8.2923,144.05,144.02,3.4727]
[1728389460372,4.82,144.05,144.02,3.4727]
[1728389460573,3.4726,144.04,144.02,3.4727]
[1728389461474,4.82,144.03,144.02,3.4727]
[1728389461974,15.47,144.03,144.02,3.4727]
[1728389462883,10.65,144.03,144.02,3.4727]
[1728389463081,15.47,144.03,144.02,3.4727]
[1728389464183,18.9427,144.03,144.02,3.4727]
[1728389467689,1.4424,144.06,143.99,0.12502]
[1728389467886,4.82,144.05,144.04,3.4724]
[1728389468085,15.47,144.05,143.99,0.12502]
[1728389468289,10.65,144.0,143.99,0.12502]
[1728389468489,10.65,144.01,143.99,0.12502]
[1728389469394,10.65,144.01,144.0,3.4734]
[1728389471298,14.15546135,144.01,143.99,3.59852]
[1728389471590,10.65,144.0,143.99,0.12502]
[1728389471897,14.1235,144.0,143.98,3.4739]
[1728389472088,15.47,143.99,143.98,3.4739]
[1728389475196,1.4467,144.01,144.0,3.4734]
[1728389475404,16.9167,144.01,144.0,3.4734]
[1728389475694,10.65,144.02,144.01,3.4731]
[1728389475899,0.12502,144.05,143.98,10.65]
[1728389476093,10.65,144.02,143.98,10.65]
[1728389476495,10.65,144.01,143.96,10.65]
[1728389476700,10.65,144.0,143.95,22.4192]
[1728389477494,3.4729,144.02,144.0,3.4733]
[1728389477700,10.65,144.01,144.0,3.4733]
[1728389478504,10.65,144.02,144.01,3.4729]
[1728389480400,4.82,144.03,144.01,3.4729]
[1728389480604,4.82,144.03,144.02,3.4729]
[1728389480802,4.82,144.03,143.95,11.7692]
[1728389480803,4.82,144.03,143.99,10.65]
[1728389481410,4.82,144.03,144.02,3.4729]
[1728389482204,0.12502,144.05,143.99,10.65]
[1728389482401,10.65,144.04,144.03,3.4725]
[1728389483200,4.94502,144.05,144.04,3.4724]
[1728389483405,15.59502,144.05,144.04,3.4724]
[1728389485207,0.12502,144.05,144.04,3.4724]
[1728389493011,10.77502,144.05,144.04,3.4724]
[1728389497115,10.77502,144.05,144.01,4.82]
[1728389497116,10.77502,144.05,144.03,3.4725]
[1728389497320,10.65,144.04,144.03,3.4725]
[1728389500821,4.94502,144.05,144.04,3.4724]
[1728389501122,15.59502,144.05,144.04,3.4724]
[1728389507842,15.59502,144.05,144.03,3.4725]
[1728389509041,19.06722,144.05,144.03,3.4725]
[1728389510844,10.65,144.04,143.98,1.3725]
[1728389511044,3.4727,144.03,144.01,3.473]
[1728389511239,10.65,144.02,144.01,3.473]
[1728389511441,15.47,144.02,144.01,3.473]
[1728389513937,18.943,144.02,144.0,3.4733]
[1728389514146,15.47,144.02,144.0,3.4733]
[1728389514538,10.65,144.01,144.0,3.4733]
[1728389514841,14.19526157,144.01,144.0,3.4733]
[1728389515145,14.19526157,144.01,143.99,3.4736]
[1728389515335,10.65,144.01,143.96,10.65]
[1728389515643,15.47,144.02,144.01,3.4731]
[1728389516342,15.47,144.02,144.0,3.4733]
[1728389516744,10.65,144.01,144.0,3.4733]
[1728389519145,15.49,144.01,144.0,3.4733]
[1728389521653,4.84,144.01,144.0,3.4733]
[1728389526855,6.3267,144.04,143.98,10.65]
[1728389527152,10.65,144.02,144.01,3.473]
[1728389535388,14.123,144.02,144.0,3.4733]
[1728389535590,14.18324939,144.01,144.0,3.4733]
[1728389536097,14.18324939,144.01,143.94,1.3035]
[1728389536305,10.65,143.97,143.94,1.3035]
[1728389537500,10.65,143.97,143.96,3.4744]
[1728389541000,15.49,143.97,143.96,3.4744]
[1728389545363,4.84,143.97,143.96,3.4744]
[1728389546695,1.3461,143.98,143.95,10.65]
[1728389547400,1.3461,143.98,143.97,3.4741]
[1728389549385,11.9961,143.98,143.97,3.4741]
[1728389550366,11.9961,143.98,143.93,1.47552]
[1728389550567,10.65,143.97,143.96,3.4742]
[1728389552874,1.3461,143.98,143.93,12.12552]
[1728389553172,11.9961,143.98,143.97,3.4741]
[1728389558277,11.9961,143.98,143.96,3.4742]
[1728389558473,10.65,143.97,143.96,3.4742]
[1728389559978,1.3461,143.98,143.93,0.12502]
[1728389560178,10.65,143.97,143.93,10.77502]
[1728389561378,10.65,143.97,143.96,3.4744]
[1728389568779,1.3198,144.03,143.96,10.65]
[1728389568969,10.65,144.01,143.96,10.65]
[1728389569174,10.65,144.0,143.95,10.65]
[1728389569479,10.65,143.97,143.93,15.59502]
[1728389571083,10.65,143.98,143.97,3.4739]
[1728389576283,15.47,143.99,143.94,10.65]
[1728389576482,15.47,143.99,143.98,3.4739]
[1728389577681,10.65,144.01,143.95,10.65]
[1728389577985,15.47,144.01,144.0,3.4732]
[1728389578980,14.11981829,144.01,143.94,12.0767]
[1728389579175,8.28981829,144.01,143.99,3.4735]
[1728389579789,11.76311829,144.01,143.99,3.4735]
[1728389580689,10.65,144.0,143.99,3.4735]
[1728389583789,3.4737,143.99,143.94,1.4267]
[1728389583989,10.65,143.98,143.93,0.12502]
[1728389584685,10.65,143.96,143.93,0.12502]
[1728389585896,10.65,143.95,143.94,3.4746]
[1728389588601,10.65,143.95,143.93,0.12502]
[1728389588804,10.65,143.94,143.93,0.12502]
[1728389589186,10.65,143.94,143.88,0.12518]
[1728389589187,10.65,143.94,143.89,3.4759]
[1728389589395,10.65,143.9,143.88,0.12518]
[1728389589897,10.65,143.9,143.89,3.476]
[1728389590995,4.82,143.92,143.9,3.4756]
[1728389590996,10.65,143.91,143.9,3.4756]
[1728389592402,4.82,143.92,143.88,0.12518]
[1728389592601,15.47,143.92,143.91,3.4756]
[1728389593704,15.47,143.92,143.9,3.4756]
[1728389594003,15.47,143.92,143.88,0.12518]
[1728389594702,15.47,143.92,143.91,3.4756]
[1728389595095,4.82,143.92,143.91,3.4756]
[1728389596799,2.7887,143.97,143.91,10.65]
[1728389596800,4.82,143.95,143.91,10.65]
[1728389597302,4.82,143.95,143.94,3.4748]
[1728389598202,15.47,143.95,143.94,3.4748]
[1728389598902,4.82,143.95,143.94,3.4748]
[1728389599102,15.47,143.95,143.94,3.4748]
[1728389600995,10.65,143.95,143.94,3.4748]
[1728389603203,16.8247,143.97,143.92,10.65]
[1728389603401,16.8247,143.97,143.96,3.4744]
[1728389607710,20.2988,143.97,143.95,3.4745]
[1728389607911,10.65,143.96,143.95,3.4745]
[1728389613711,16.8247,143.97,143.96,3.4744]
[1728389613909,15.47,143.97,143.96,3.4744]
[1728389614110,10.65,143.97,143.96,3.4744]
[1728389614617,10.65,143.98,143.97,3.4741]
[1728389615813,10.65,143.98,143.96,3.4742]
[1728389616018,10.65,143.97,143.96,3.4742]
[1728389616709,10.65,143.97,143.95,3.4745]
[1728389617212,10.65,143.96,143.88,8.50068]
[1728389617514,10.65,143.95,143.94,3.4747]
[1728389617814,15.45,143.96,143.91,10.65]
[1728389618017,15.45,143.96,143.95,3.4746]
[1728389623312,15.45,143.96,143.94,3.4748]
[1728389625114,10.65,143.95,143.89,4.8]
[1728389625310,10.65,143.95,143.9,10.65]
[1728389625812,10.65,143.93,143.88,6.34838]
[1728389626118,10.65,143.93,143.88,16.99838]
[1728389626318,10.65,143.91,143.88,0.12518]
[1728389627120,10.65,143.91,143.9,3.4756]
[1728389629327,4.8,143.93,143.91,3.4753]
[1728389629523,8.35468376,143.93,143.88,10.77518]
[1728389629726,8.35468376,143.93,143.89,10.65]
[1728389629929,19.00468376,143.93,143.89,10.65]
[1728389630117,19.00468376,143.93,143.92,3.4753]
[1728389630616,15.45,143.93,143.92,3.4753]
[1728389642935,18.90134781,143.93,143.92,3.4753]
[1728389643130,18.90134781,143.93,143.91,3.4754]
[1728389643635,22.37654781,143.93,143.91,3.4754]
[1728389652150,18.90134781,143.93,143.88,10.77518]
[1728389652352,15.45,143.93,143.92,3.4753]
[1728389655960,15.43,143.93,143.92,3.4753]
[1728389662261,1.3454,143.96,143.9,10.65]
[1728389662564,11.9556,143.95,143.91,10.65]
[1728389662956,11.9556,143.95,143.94,3.4748]
[1728389668472,10.65,143.95,143.94,3.4748]
[1728389674668,6.1497,143.97,143.96,3.4744]
[1728389674870,16.7997,143.97,143.96,3.4744]
[1728389675064,15.41,143.97,143.93,10.65]
[1728389675468,15.41,143.97,143.96,3.4744]
[1728389675868,10.65,143.97,143.96,3.4744]
[1728389676170,10.65,143.98,143.97,3.4741]
[1728389676374,15.41,143.98,143.93,10.65]
[1728389676574,10.65,143.94,143.88,34.1474001]
[1728389676879,10.65,143.93,143.92,3.4751]
[1728389681773,4.76,143.95,143.94,3.4748]
[1728389681976,15.41,143.95,143.94,3.4748]
[1728389682480,4.76,143.95,143.94,3.4748]
[1728389694990,10.65,143.96,143.91,10.65]
[1728389695186,15.41,143.96,143.91,10.65]
[1728389696186,15.41,143.96,143.95,3.4746]
[1728389696995,10.65,143.96,143.95,3.4746]
[1728389697291,15.41,143.96,143.95,3.4746]
[1728389698994,10.65,143.96,143.95,3.4746]
[1728389699200,15.41,143.96,143.95,3.4746]
[1728389700997,10.65,143.96,143.89,4.76]
[1728389701213,4.76,143.96,143.94,3.4747]
[1728389702298,4.76,143.95,143.94,3.4747]
[1728389702600,15.41,143.95,143.94,3.4747]
[1728389702995,10.65,143.95,143.94,3.4747]
[1728389703194,15.41,143.95,143.89,4.76]
[1728389703493,8.2346,143.95,143.93,3.4751]
[1728389704603,10.65,143.94,143.88,19.0414163]
[1728389704801,10.65,143.9,143.88,0.12518]
[1728389705298,10.65,143.9,143.89,3.476]
[1728389706696,10.65,143.91,143.89,3.476]
[1728389706897,4.76,143.92,143.88,10.77518]
[1728389707199,15.41,143.92,143.88,10.77518]
[1728389707704,15.41,143.92,143.91,3.4756]
[1728389709005,10.65,143.92,143.91,3.4756]
[1728389709298,15.41,143.92,143.91,3.4756]
[1728389709896,15.41,143.92,143.88,0.12518]
[1728389710092,10.65,143.9,143.88,0.12518]
[1728389711502,10.65,143.9,143.89,3.4759]
[1728389712396,10.65,143.9,143.88,3.60128]
[1728389712597,10.65,143.89,143.88,3.60128]
[1728389713502,6.0663,143.92,143.88,0.12518]
[1728389713700,15.41,143.91,143.9,3.4758]
[1728389718109,15.41,143.91,143.88,0.12518]
[1728389718305,10.65,143.89,143.88,0.12518]
[1728389718604,10.65,143.9,143.88,0.12518]
[1728389718810,10.65,143.9,143.89,3.4759]
[1728389720014,10.65,143.9,143.88,3.60148]
[1728389722411,10.65,143.89,143.88,0.12518]
[1728389723513,14.126,143.89,143.88,0.12518]
[1728389724710,10.65,143.89,143.88,0.12518]
[1728389725600,14.1259,143.9,143.88,0.12518]
[1728389725905,10.65,143.9,143.88,3.60138]
[1728389726202,1.3063,143.92,143.88,0.12518]
[1728389726405,4.76,143.91,143.9,3.4757]
[1728389729010,11.9563,143.92,143.91,3.4756]
[1728389729312,16.7163,143.92,143.91,3.4756]
[1728389731711,20.1916,143.92,143.91,3.4756]
[1728389732614,15.4316,143.92,143.91,3.4756]
[1728389732915,20.1916,143.92,143.91,3.4756]
[1728389735320,16.7163,143.92,143.91,3.4756]
[1728389737313,20.1918,143.92,143.9,3.4757]
[1728389737620,10.65,143.91,143.9,3.4757]
[1728389738822,10.65,143.91,143.88,0.12518]
[1728389739015,10.65,143.89,143.88,0.12518]
[1728389739220,15.41,143.89,143.88,0.12518]
[1728389740118,18.886,143.89,143.88,0.12518]
[1728389741226,4.76,143.89,143.88,0.12518]
[1728389741425,15.41,143.89,143.88,0.12518]
[1728389745437,18.886,143.89,143.88,0.12518]
[1728389749521,3.4763,143.88,143.87,0.12502]
[1728389749721,14.1263,143.88,143.87,0.12502]
[1728389755029,4.76,143.88,143.87,3.60152]
[1728389755233,4.76,143.89,143.87,0.12502]
[1728389755731,4.76,143.89,143.88,3.4763]
[1728389757532,10.65,143.9,143.89,3.476]
[1728389757731,15.41,143.9,143.89,3.476]
[1728389758945,4.76,143.9,143.87,10.77502]
[1728389759136,4.76,143.9,143.89,3.476]
[1728389761440,16.7163,143.92,143.9,3.4757]
[1728389762147,10.65,143.91,143.9,3.4757]
[1728389780454,68.7286956,143.95,143.87,10.77502]
[1728389780655,76.4001,143.97,143.91,10.65]
[1728389780954,1.3401,143.97,143.92,10.65]
[1728389781159,4.76,143.97,143.96,3.4744]
[1728389782157,10.65,143.98,143.97,3.4741]
[1728389782358,0.12502,143.99,143.95,10.65]
[1728389782659,4.88502,143.99,143.95,10.65]
[1728389783555,4.88502,143.99,143.98,3.4739]
[1728389785959,0.12502,143.99,143.98,3.4739]
[1728389801072,0.12502,143.99,143.98,14.1239]
[1728389802064,4.76,144.04,143.99,3.4734]
[1728389802269,15.41,144.04,144.0,10.65]
[1728389802673,4.76,144.04,144.02,3.4728]
[1728389802972,15.41,144.04,144.02,3.4728]
[1728389804975,4.76,144.04,144.02,3.4728]
[1728389805186,15.41,144.04,144.02,3.4728]
[1728389807578,15.41,144.04,143.99,10.65]
[1728389807774,4.76,144.04,144.03,3.4727]
[1728389807977,10.77502,144.05,144.0,10.65]
[1728389808883,0.12502,144.05,144.04,3.4724]
[1728389809586,0.12502,144.05,143.99,4.76]
[1728389809587,10.77502,144.05,143.99,4.76]
[1728389809875,14.24732,144.05,143.99,15.41]
[1728389810383,14.24732,144.05,144.02,3.4728]
[1728389810574,10.65,144.03,144.02,3.4728]
[1728389810981,10.65,144.03,143.97,1.4183]
[1728389811178,10.65,144.03,143.98,10.65]
[1728389812080,10.77502,144.05,144.02,3.4729]
[1728389812276,10.77502,144.05,143.99,10.65]
[1728389812891,10.77502,144.05,144.03,3.4725]
[1728389813186,14.24722,144.05,144.03,3.4725]
[1728389814582,10.77502,144.05,144.03,3.4725]
[1728389816088,10.77502,144.05,144.04,3.4724]
[1728389816389,0.12502,144.05,144.04,3.4724]
[1728389829890,3.59732,144.05,144.0,3.4732]
[1728389830095,14.24732,144.05,144.0,10.65]
[1728389830394,14.24732,144.05,144.03,3.4725]
[1728389830395,10.77502,144.05,144.03,3.4725]
[1728389830600,0.12502,144.05,144.01,10.65]
[1728389831385,0.12502,144.05,144.04,3.4724]
[1728389838196,0.12502,144.05,143.99,1.338]
[1728389838389,10.65,144.04,143.99,11.988]
[1728389838888,14.1224,144.04,144.02,3.4728]
[1728389839291,10.65,144.04,144.02,3.4728]
[1728389840898,10.65,144.04,143.94,0.253]
[1728389840899,10.65,144.04,144.0,3.4732]
[1728389841094,10.65,144.01,143.94,1.3947]
[1728389841290,14.11295094,144.01,143.96,10.65]
[1728389842099,10.65,144.01,143.95,4.76]
[1728389842302,15.41,144.03,143.97,10.65]
[1728389842600,15.41,144.03,144.01,3.473]
[1728389844007,18.8827,144.03,144.01,3.473]
[1728389844305,3.4729,144.02,143.98,10.65]
[1728389844602,15.41,144.03,143.98,10.65]
[1728389844802,18.8828,144.03,144.0,3.4732]
[1728389846092,18.8828,144.03,143.95,4.76]
[1728389846093,4.76,144.03,144.02,3.4729]
[1728389846803,1.2876,144.04,144.0,10.65]